bitfinex-derivatives/quotes_SOLF0:USTF0_20241227
["timestamp","ask_amount","ask_price","bid_price","bid_amount"]
[1735280614015,13.31349865,190.2,190.11,2.6329]
[1735280614212,8.51011147,190.17,190.11,2.6329]
[1735280614518,11.14231147,190.17,190.11,2.6329]
[1735280616719,11.14231147,190.17,190.12,2.6329]
[1735280619222,11.14231147,190.17,190.12,11.14301147]
[1735280621025,11.14231147,190.17,190.12,8.51011147]
[1735280621222,11.14231147,190.17,190.13,2.6328]
[1735280621424,11.14231147,190.17,190.14,3.1]
[1735280622625,2.6322,190.17,190.14,3.1]
[1735280623228,2.6321,190.18,190.14,5.7326]
[1735280624025,2.6321,190.18,190.14,14.24271147]
[1735280627026,8.51011147,190.2,190.14,3.1]
[1735280627231,8.51011147,190.18,190.14,3.1]
[1735280627731,8.51011147,190.16,190.09,11.14341147]
[1735280627930,8.51011147,190.16,190.06,1.6103]
[1735280627931,8.51011147,190.14,190.01,1.6645]
[1735280628124,2.6332,190.1,190.04,8.51011147]
[1735280628326,2.6332,190.1,190.02,2.6342]
[1735280628327,8.51011147,190.1,190.05,3.06]
[1735280628927,8.51011147,190.08,189.95,1.6645]
[1735280629122,8.51011147,190.06,189.98,8.51011147]
[1735280629321,2.6343,190.02,189.99,3.06]
[1735280629525,8.51011147,190.04,189.99,3.06]
[1735280629723,11.14421147,190.04,189.99,3.06]
[1735280630324,8.51011147,190.04,189.99,3.06]
[1735280632331,8.51011147,190.02,189.96,8.51011147]
[1735280632634,8.51011147,190.02,189.97,3.06]
[1735280633431,2.6344,190.01,189.97,3.06]
[1735280633933,11.14441147,190.02,189.97,3.06]
[1735280634522,11.14441147,190.02,189.97,5.695]
[1735280634831,8.51011147,190.02,189.96,8.51011147]
[1735280635029,8.51011147,190.02,189.97,3.06]
[1735280636142,2.6346,190.0,189.97,3.06]
[1735280636427,8.51011147,190.02,189.97,3.06]
[1735280638433,2.6344,190.01,189.97,3.06]
[1735280639028,1.6596,190.03,189.97,3.06]
[1735280639233,1.6596,190.03,189.99,8.51011147]
[1735280639432,10.11511147,190.05,189.99,8.51011147]
[1735280639632,12.74901147,190.05,190.0,2.6346]
[1735280642134,3.1899,190.12,190.01,8.51011147]
[1735280642341,8.51011147,190.08,190.02,3.06]
[1735280643439,11.14361147,190.08,190.03,2.6341]
[1735280643940,2.6335,190.08,190.04,2.634]
[1735280644343,2.6333,190.09,190.03,8.51011147]
[1735280644541,8.51011147,190.1,190.05,2.6338]
[1735280645544,11.14331147,190.1,190.06,2.6337]
[1735280645745,11.14331147,190.1,190.07,3.06]
[1735280645945,8.51011147,190.1,190.07,3.06]
[1735280648248,2.6335,190.08,190.07,3.06]
[1735280648546,8.51011147,190.1,190.07,3.06]
[1735280649550,11.14341147,190.1,190.07,3.06]
[1735280649751,8.51011147,190.1,190.07,3.06]
[1735280650249,8.51011147,190.08,190.07,3.06]
[1735280651452,11.14361147,190.08,190.07,3.06]
[1735280654055,11.14361147,190.08,189.9,1.5245]
[1735280654056,8.51011147,190.08,189.9,1.5245]
[1735280654355,8.51011147,190.04,189.98,8.51011147]
[1735280654755,2.6343,190.03,189.99,3.06]
[1735280655055,2.6343,190.03,190.0,3.06]
[1735280655656,8.51011147,190.04,190.0,3.06]
[1735280655956,2.6344,190.01,190.0,3.06]
[1735280656145,2.6344,190.01,189.96,8.51011147]
[1735280656146,8.51011147,190.02,189.96,8.51011147]
[1735280656351,11.14441147,190.02,189.97,5.6949]
[1735280658261,8.51011147,189.98,189.88,61.42278036]
[1735280658555,8.51011147,189.98,189.9,8.51011147]
[1735280658750,8.51011147,189.98,189.89,3.06]
[1735280658957,8.51011147,189.98,189.9,8.51011147]
[1735280659552,2.6351,189.97,189.91,2.6358]
[1735280660052,11.14491147,189.98,189.92,2.6356]
[1735280660762,11.14491147,189.98,189.93,3.06]
[1735280661255,8.51011147,189.98,189.93,5.6955]
[1735280662163,8.51011147,189.98,189.88,61.42278036]
[1735280662350,8.51011147,189.96,189.89,11.57011147]
[1735280663059,8.51011147,189.98,189.91,8.51011147]
[1735280664556,2.635,189.97,189.92,2.6356]
[1735280665957,3.0848,190.0,189.91,8.51011147]
[1735280666259,11.14491147,189.99,189.94,2.6354]
[1735280666462,11.14491147,189.99,189.95,3.06]
[1735280667355,2.6349,189.98,189.95,3.06]
[1735280669363,2.6351,189.96,189.95,3.06]
[1735280669560,8.51011147,189.97,189.93,3.06]
[1735280670159,2.6351,189.96,189.93,3.06]
[1735280671559,8.51011147,189.97,189.93,3.06]
[1735280671863,2.6354,189.95,189.93,3.06]
[1735280672258,2.6354,189.95,189.9,2.6359]
[1735280672464,2.6354,189.95,189.91,3.06]
[1735280674266,2.6354,189.95,189.92,3.06]
[1735280676066,11.14521147,189.97,189.92,3.06]
[1735280676270,8.51011147,189.97,189.92,3.06]
[1735280677266,2.6352,189.96,189.92,3.06]
[1735280681869,8.51011147,189.97,189.92,5.6956]
[1735280682464,2.635,189.98,189.93,2.6355]
[1735280684274,2.635,189.98,189.94,2.6354]
[1735280684972,11.14481147,189.99,189.95,2.6352]
[1735280687074,2.6347,189.99,189.95,2.6352]
[1735280687276,11.14481147,189.99,189.95,2.6352]
[1735280688171,8.51011147,189.97,189.92,3.06]
[1735280688377,8.51011147,189.95,189.92,3.04]
[1735280689679,8.51011147,189.97,189.92,3.04]
[1735280690684,2.6352,189.96,189.92,5.6757]
[1735280691779,2.635,189.97,189.93,2.6354]
[1735280691983,11.14511147,189.97,189.93,2.6354]
[1735280692787,11.14511147,189.97,189.94,2.6354]
[1735280695693,8.51011147,189.97,189.94,2.6354]
[1735280695893,10.06511147,190.0,189.95,2.6352]
[1735280696181,8.51011147,190.0,189.95,2.6352]
[1735280696990,2.6347,189.99,189.92,11.55011147]
[1735280698488,2.6347,189.99,189.95,2.6352]
[1735280698690,8.51011147,189.98,189.92,3.04]
[1735280698883,8.51011147,189.96,189.93,3.04]
[1735280700487,11.14541147,189.96,189.93,3.04]
[1735280702497,11.14551147,189.94,189.93,3.04]
[1735280705500,2.6358,189.92,189.87,2.6364]
[1735280705703,8.51011147,189.9,189.83,1.6568]
[1735280706000,8.51011147,189.9,189.84,3.04]
[1735280707202,8.51011147,189.9,189.83,1.6568]
[1735280707401,2.6363,189.88,189.84,3.04]
[1735280709600,8.51011147,189.9,189.85,2.6365]
[1735280716403,8.51011147,189.9,189.86,2.6364]
[1735280716601,11.14581147,189.92,189.86,2.6364]
[1735280717504,11.14581147,189.92,189.87,2.6364]
[1735280718904,2.6358,189.91,189.87,2.6364]
[1735280719201,2.6358,189.91,189.85,8.51011147]
[1735280719202,8.51011147,189.9,189.83,2.6369]
[1735280719402,8.51011147,189.9,189.84,3.04]
[1735280719713,2.6365,189.86,189.84,3.04]
[1735280721309,8.51011147,189.88,189.84,5.6767]
[1735280721509,8.51011147,189.9,189.84,5.6767]
[1735280722009,2.6362,189.89,189.84,5.6767]
[1735280723907,2.6362,189.89,189.85,2.6365]
[1735280725204,1.6798,189.91,189.86,8.51011147]
[1735280725410,2.6357,189.92,189.88,8.51011147]
[1735280725613,10.08921147,189.95,189.89,3.04]
[1735280725810,2.6351,189.96,189.9,8.51011147]
[1735280726008,1.5235,189.98,189.9,8.51011147]
[1735280726208,8.51011147,189.96,189.9,8.51011147]
[1735280726610,2.6353,189.95,189.9,11.14601147]
[1735280727615,2.6353,189.95,189.9,2.6359]
[1735280728518,8.51011147,189.96,189.89,3.04]
[1735280728721,11.14531147,189.96,189.91,2.6357]
[1735280730721,12.66861147,189.98,189.93,2.6355]
[1735280730913,12.66861147,189.98,189.94,3.04]
[1735280733622,10.03361147,189.98,189.94,3.04]
[1735280733916,10.03361147,189.98,189.95,2.6352]
[1735280734916,29.16050664,190.06,189.94,3.04]
[1735280735123,2.6344,190.02,189.94,11.55011147]
[1735280735315,4.7484,190.05,189.94,11.55011147]
[1735280735515,8.51011147,190.03,189.96,8.51011147]
[1735280735926,4.7484,190.05,189.96,8.51011147]
[1735280736223,8.51011147,190.04,189.96,8.51011147]
[1735280736413,8.51011147,190.04,189.98,8.51011147]
[1735280736618,8.51011147,190.04,189.99,3.04]
[1735280736825,1.6154,190.05,189.99,3.04]
[1735280737115,2.6337,190.06,190.0,11.14461147]
[1735280737321,8.51011147,190.08,190.0,8.51011147]
[1735280737923,8.51011147,190.08,190.03,2.6341]
[1735280738123,8.51011147,190.08,190.04,3.04]
[1735280740920,8.51011147,190.08,190.04,5.674]
[1735280741621,8.51011147,190.08,190.04,3.04]
[1735280741826,11.69951147,190.1,190.05,2.6339]
[1735280742020,8.51011147,190.1,190.05,2.6339]
[1735280742717,11.14331147,190.1,190.04,3.04]
[1735280742918,8.51011147,190.1,190.06,2.6337]
[1735280746731,8.51011147,190.1,190.07,2.6336]
[1735280747228,2.6331,190.11,190.07,2.6336]
[1735280748227,2.6332,190.1,190.06,2.6337]
[1735280750627,2.6332,190.1,190.05,2.6338]
[1735280751434,11.14331147,190.1,190.05,2.6338]
[1735280752429,2.6334,190.09,190.04,5.674]
[1735280752834,8.51011147,190.1,190.04,3.04]
[1735280753130,11.14331147,190.1,190.05,2.6339]
[1735280755238,1.6095,190.12,190.04,11.55011147]
[1735280755533,2.6331,190.11,190.06,2.6337]
[1735280757833,2.6332,190.1,190.06,2.6337]
[1735280758333,10.11961147,190.12,190.06,2.6337]
[1735280758633,10.11961147,190.12,190.07,2.6336]
[1735280759533,12.75251147,190.12,190.07,2.6336]
[1735280760036,12.75251147,190.12,190.04,11.55011147]
[1735280760037,2.6328,190.13,190.09,2.6333]
[1735280760233,2.6328,190.13,190.1,3.04]
[1735280760729,8.51011147,190.14,190.1,5.6731]
[1735280761631,3.2735,190.16,190.0,61.38746873]
[1735280761632,8.51011147,190.12,190.07,3.04]
[1735280761936,3.2735,190.16,190.04,3.04]
[1735280761937,8.51011147,190.08,190.04,3.04]
[1735280762236,8.51011147,190.06,190.04,3.04]
[1735280762429,8.51011147,190.06,190.0,3.04]
[1735280763030,11.14381147,190.06,190.0,5.6744]
[1735280763231,8.51011147,190.06,190.0,3.04]
[1735280764237,11.14371147,190.08,190.02,2.6343]
[1735280764439,8.51011147,190.08,190.01,8.51011147]
[1735280765237,11.14361147,190.08,190.03,2.6341]
[1735280765639,11.14361147,190.08,190.02,2.6343]
[1735280765841,2.6336,190.07,190.02,2.6343]
[1735280766030,2.6336,190.07,190.0,3.04]
[1735280766236,8.51011147,190.06,190.0,5.6745]
[1735280767538,2.6339,190.05,190.0,5.6745]
[1735280767841,8.51011147,190.08,190.01,2.6344]
[1735280769140,2.6336,190.07,190.01,2.6344]
[1735280769839,2.6336,190.07,190.02,2.6342]
[1735280771535,11.14361147,190.08,190.03,2.6341]
[1735280771735,11.14361147,190.08,190.01,8.51011147]
[1735280773440,11.14361147,190.08,190.03,2.6341]
[1735280776739,8.51011147,190.08,190.0,3.04]
[1735280776943,8.51011147,190.06,189.96,1.83818483]
[1735280777139,8.51011147,190.04,189.99,3.04]
[1735280777342,8.51011147,190.02,189.96,8.51011147]
[1735280777544,2.6344,190.01,189.98,3.04]
[1735280778245,2.6344,190.01,189.97,2.6349]
[1735280778543,2.6344,190.01,189.98,3.04]
[1735280778743,11.14441147,190.02,189.98,3.04]
[1735280779449,1.5798,190.04,189.98,11.55011147]
[1735280780348,12.69951147,190.05,189.98,11.55011147]
[1735280780542,10.06551147,190.05,189.98,11.55011147]
[1735280781548,1.5554,190.05,189.98,11.55011147]
[1735280781774,10.06551147,190.05,189.98,11.55011147]
[1735280782368,2.6341,190.04,189.99,2.6347]
[1735280782577,10.06551147,190.05,189.98,3.04]
[1735280783570,2.634,190.04,189.99,2.6347]
[1735280786161,1.5554,190.05,189.99,8.51011147]
[1735280787354,1.5554,190.05,190.02,2.6342]
[1735280787552,1.5554,190.05,190.03,3.04]
[1735280789654,1.5554,190.05,190.03,5.6741]
[1735280792861,11.14371147,190.07,190.03,5.6741]
[1735280794260,11.14371147,190.07,190.03,3.04]
[1735280800364,11.14371147,190.07,190.03,5.6741]
[1735280806972,8.51011147,190.07,190.03,3.04]
[1735280808671,8.51011147,190.07,190.02,3.04]
[1735280809475,2.6339,190.05,190.02,3.04]
[1735280809873,1.5467,190.08,190.02,5.6743]
[1735280810176,12.69031147,190.08,190.02,3.04]
[1735280810674,8.51011147,190.08,190.02,3.04]
[1735280810874,9.92332666,190.1,190.02,11.55011147]
[1735280810875,18.43343813,190.1,190.02,11.55011147]
[1735280811079,15.80023813,190.1,190.02,11.55011147]
[1735280811273,18.43343813,190.1,190.05,2.6338]
[1735280811474,8.51011147,190.1,190.02,11.55011147]
[1735280812475,2.6333,190.09,190.04,2.634]
[1735280815876,2.6333,190.09,190.02,11.55011147]
[1735280816075,8.51011147,190.1,190.05,2.6338]
[1735280816278,8.51011147,190.12,190.04,8.51011147]
[1735280817083,11.14311147,190.12,190.07,2.6336]
[1735280817382,11.14311147,190.12,190.08,3.04]
[1735280817982,2.633,190.11,190.08,3.04]
[1735280819477,8.51011147,190.12,190.08,3.04]
[1735280819782,11.14301147,190.12,190.08,3.04]
[1735280820280,11.14301147,190.12,190.08,5.6734]
[1735280821379,8.51011147,190.1,190.08,3.04]
[1735280821580,8.51011147,190.1,190.06,3.04]
[1735280821884,8.51011147,190.08,190.06,3.04]
[1735280825676,11.14361147,190.08,190.06,3.04]
[1735280826487,8.51011147,190.08,190.06,3.04]
[1735280826987,8.51011147,190.08,190.04,5.674]
[1735280828588,2.6333,190.09,190.04,5.674]
[1735280830190,8.51011147,190.1,190.05,2.6338]
[1735280831493,11.14331147,190.1,190.05,2.6338]
[1735280836497,11.14331147,190.1,190.04,3.04]
[1735280836694,11.14331147,190.1,190.06,2.6337]
[1735280837094,2.6331,190.11,190.04,3.04]
[1735280838394,2.6331,190.11,190.07,2.6335]
[1735280842594,11.14301147,190.12,190.08,2.6334]
[1735280842796,8.51011147,190.12,190.08,2.6334]
[1735280843799,8.51011147,190.12,190.09,3.04]
[1735280847505,1.647,190.13,190.1,2.6332]
[1735280847799,1.647,190.13,190.09,3.04]
[1735280849799,4.2798,190.13,190.09,3.04]
[1735280850601,2.6324,190.16,190.12,2.6329]
[1735280850801,11.14251147,190.16,190.12,2.6329]
[1735280854303,8.51011147,190.16,190.09,11.55011147]
[1735280855703,8.51011147,190.16,190.11,2.633]
[1735280855903,8.51011147,190.16,190.09,11.55011147]
[1735280856901,8.51011147,190.16,190.12,2.6328]
[1735280857508,2.6322,190.17,190.13,2.6327]
[1735280859606,2.6322,190.17,190.14,3.04]
[1735280863114,2.6325,190.15,190.14,3.04]
[1735280863315,8.51011147,190.16,190.12,3.04]
[1735280863813,2.6325,190.15,190.12,3.04]
[1735280864418,11.14261147,190.15,190.12,3.04]
[1735280866822,2.6323,190.17,190.12,5.6729]
[1735280867016,11.14241147,190.17,190.12,3.04]
[1735280868515,11.14241147,190.17,190.13,2.6328]
[1735280870823,8.51011147,190.15,190.03,4.7534]
[1735280871025,8.51011147,190.15,190.06,8.51011147]
[1735280872526,2.6329,190.13,190.09,2.6333]
[1735280872823,8.51011147,190.15,190.1,3.04]
[1735280873026,2.6327,190.14,190.1,3.04]
[1735280873415,2.6327,190.14,190.1,5.6731]
[1735280875026,2.6329,190.13,190.1,3.04]
[1735280879825,2.6329,190.13,190.09,5.6733]
[1735280880330,8.51011147,190.13,190.06,8.51011147]
[1735280880524,8.51011147,190.13,190.07,3.04]
[1735280881431,2.6329,190.12,190.08,2.6334]
[1735280886227,1.5305,190.15,190.07,3.04]
[1735280886427,2.6327,190.14,190.1,2.6332]
[1735280886628,1.5305,190.15,190.1,2.6332]
[1735280886629,10.04061147,190.15,190.1,2.6332]
[1735280886930,8.51011147,190.15,190.08,8.51011147]
[1735280887133,8.51011147,190.13,190.07,3.04]
[1735280887337,2.6332,190.11,190.06,8.51011147]
[1735280887532,8.51011147,190.11,190.05,3.04]
[1735280887733,8.51011147,190.07,189.98,7.17469192]
[1735280887930,2.6339,190.05,189.99,11.55011147]
[1735280888136,8.51011147,190.07,189.99,11.55011147]
[1735280888434,11.14341147,190.09,190.03,8.51011147]
[1735280888733,11.14341147,190.09,190.04,3.04]
[1735280888734,8.51011147,190.09,190.04,3.04]
[1735280889125,2.6332,190.1,190.05,2.6338]
[1735280889328,10.14711147,190.12,190.05,8.51011147]
[1735280890337,4.27,190.12,190.07,2.6336]
[1735280890531,10.14711147,190.12,190.04,11.55011147]
[1735280891431,2.6332,190.11,190.06,2.6337]
[1735280894142,2.6332,190.11,190.07,2.6336]
[1735280902449,4.2699,190.12,190.08,2.6334]
[1735280903851,4.2699,190.12,190.08,5.6734]
[1735280904246,1.637,190.12,190.08,3.04]
[1735280904549,8.51011147,190.11,190.08,3.04]
[1735280904750,2.6332,190.1,190.08,3.04]
[1735280905953,4.27,190.12,190.08,3.04]
[1735280906253,10.14711147,190.12,190.08,3.04]
[1735280907254,2.6332,190.11,190.08,3.04]
[1735280907953,1.637,190.12,190.08,3.04]
[1735280908154,1.637,190.12,190.09,2.6333]
[1735280908155,2.6329,190.12,190.09,2.6333]
[1735280909050,8.51011147,190.13,190.09,2.6333]
[1735280909255,11.14291147,190.13,190.09,2.6333]
[1735280909458,8.51011147,190.13,190.08,3.04]
[1735280909658,30.81470664,190.17,190.11,2.6329]
[1735280909859,8.51011147,190.16,190.11,2.6329]
[1735280910659,2.6325,190.15,190.11,2.6329]
[1735280914254,4.2865,190.17,190.09,8.51011147]
[1735280914449,8.51011147,190.15,190.08,3.04]
[1735280914651,8.51011147,190.15,190.08,11.55011147]
[1735280914849,8.51011147,190.15,190.1,2.6332]
[1735280915259,11.14261147,190.15,190.11,2.633]
[1735280915958,2.6324,190.16,190.11,2.633]
[1735280916154,11.14251147,190.16,190.11,2.633]
[1735280919256,11.14251147,190.16,190.1,8.51011147]
[1735280919459,11.14251147,190.16,190.12,2.6329]
[1735280927467,8.51011147,190.16,190.09,2.6333]
[1735280927666,8.51011147,190.16,190.09,5.6733]
[1735280927964,8.51011147,190.14,190.09,2.6333]
[1735280928561,2.6331,190.11,190.0,3.2189]
[1735280928766,8.51011147,190.12,190.01,3.04]
[1735280928969,8.51011147,190.12,190.04,8.51011147]
[1735280929770,2.6333,190.1,190.05,2.6337]
[1735280929972,2.6333,190.1,190.04,8.51011147]
[1735280930669,8.51011147,190.12,190.06,8.51011147]
[1735280930870,2.6331,190.11,190.06,11.55011147]
[1735280931673,11.14301147,190.12,190.07,2.6335]
[1735280931972,8.51011147,190.12,190.06,11.55011147]
[1735280932172,8.51011147,190.14,190.06,11.55011147]
[1735280932975,2.6328,190.13,190.08,2.6333]
[1735280933867,11.14291147,190.13,190.06,11.55011147]
[1735280934068,11.14291147,190.13,190.09,2.6333]
[1735280936976,8.94432666,190.17,190.08,8.51011147]
[1735280937176,8.51011147,190.16,190.08,8.51011147]
[1735280937575,11.14251147,190.16,190.12,2.6328]
[1735280937874,8.51011147,190.16,190.11,3.04]
[1735280938675,1.6542,190.17,190.11,3.04]
[1735280938871,8.51011147,190.16,190.11,3.04]
[1735280939474,2.6325,190.15,190.11,5.673]
[1735280940179,11.14251147,190.16,190.12,2.6329]
[1735280940474,11.14251147,190.16,190.11,3.04]
[1735280940475,8.51011147,190.16,190.11,3.04]
[1735280940876,2.6327,190.14,190.11,3.04]
[1735280942680,2.6327,190.14,190.11,5.673]
[1735280942978,1.6542,190.17,190.11,5.673]
[1735280943176,2.6325,190.15,190.11,5.673]
[1735280945381,8.51011147,190.16,190.11,3.04]
[1735280945580,2.6327,190.14,190.11,3.04]
[1735280948876,2.6325,190.15,190.11,5.6729]
[1735280953486,2.6328,190.13,190.11,3.04]
[1735280953885,2.6328,190.13,190.0,3.2189]
[1735280954080,2.6328,190.13,190.07,8.51011147]
[1735280954276,2.6328,190.13,190.08,3.04]
[1735280954886,2.6328,190.13,190.08,5.6733]
[1735280955185,2.6328,190.13,190.0,3.2189]
[1735280955186,8.51011147,190.09,190.02,8.51011147]
[1735280955484,2.6336,190.08,190.02,2.6342]
[1735280955686,2.6336,190.08,190.03,3.04]
[1735280956385,2.6336,190.08,190.03,5.674]
[1735280956687,2.6333,190.1,190.04,3.04]
[1735280956884,2.6333,190.1,190.04,11.55011147]
[1735280957387,2.6333,190.1,190.04,14.18401147]
[1735280957886,2.6333,190.1,190.04,11.55011147]
[1735280958083,2.6333,190.1,190.05,2.6338]
[1735280958279,8.51011147,190.11,190.05,2.6338]
[1735280958584,2.6333,190.09,190.04,14.18411147]
[1735280960685,2.6333,190.09,190.05,2.6338]
[1735280964693,2.6336,190.07,190.02,2.6342]
[1735280964892,8.51011147,190.07,190.03,3.04]
[1735280965196,2.6338,190.06,190.03,3.04]
[1735280965991,11.14371147,190.07,190.03,3.04]
[1735280971203,11.14371147,190.07,190.03,5.6741]
[1735280971805,2.6336,190.07,190.03,5.6741]
[1735280972304,8.51011147,190.09,190.03,3.04]
[1735280972305,2.6334,190.09,190.03,3.04]
[1735280972509,2.6334,190.09,190.03,11.55011147]
[1735280973503,2.6334,190.09,190.05,2.6338]
[1735280975198,10.09781147,190.1,190.03,11.55011147]
[1735280975398,10.09781147,190.1,190.05,2.6339]
[1735280975594,10.09781147,190.1,190.03,3.04]
[1735280976304,2.6336,190.08,190.03,3.04]
[1735280977499,2.6336,190.08,190.04,2.634]
[1735280978303,1.5877,190.1,190.03,3.04]
[1735280978500,4.2209,190.1,190.06,2.6337]
[1735280978701,12.73101147,190.1,190.06,2.6337]
[1735280979607,4.2209,190.1,190.06,2.6337]
[1735280979808,12.73101147,190.1,190.06,2.6337]
[1735280980108,4.2209,190.1,190.06,2.6337]
[1735280980307,12.73101147,190.1,190.06,2.6337]
[1735280983209,10.09781147,190.1,190.03,11.55011147]
[1735280983409,2.6334,190.09,190.05,2.6338]
[1735280994524,10.09781147,190.1,190.03,11.55011147]
[1735280994718,2.6335,190.08,190.04,2.634]
[1735280996419,8.51011147,190.06,189.99,4.47267773]
[1735280996625,8.51011147,190.06,190.01,3.04]
[1735280997322,2.6341,190.04,190.01,3.04]
[1735280999224,11.14421147,190.04,190.01,3.04]
[1735280999626,2.6339,190.05,190.01,5.6744]
[1735280999815,8.51011147,190.06,190.01,3.04]
[1735281000222,11.14391147,190.06,190.02,2.6342]
[1735281001121,2.6339,190.05,190.01,3.04]
[1735281002529,2.6339,190.05,190.01,5.6744]
[1735281006828,2.634,190.04,190.01,2.6344]
[1735281007028,2.634,190.04,190.01,3.04]
[1735281007232,11.14411147,190.04,190.01,3.04]
[1735281007428,11.14411147,190.04,189.99,4.47267773]
[1735281007628,11.14411147,190.04,190.0,3.04]
[1735281008436,2.6343,190.03,190.0,3.04]
[1735281010637,2.6347,190.0,189.95,60.48971551]
[1735281010935,8.51011147,190.0,189.97,3.04]
[1735281011131,2.6339,190.05,189.97,5.6749]
[1735281011331,8.51011147,190.04,189.97,11.55011147]
[1735281011731,2.6343,190.03,189.99,2.6347]
[1735281011931,8.51011147,190.04,189.97,11.55011147]
[1735281013938,2.6338,190.06,190.02,2.6343]
[1735281014140,11.14391147,190.06,190.02,5.6743]
[1735281015037,30.74820664,190.1,190.02,3.04]
[1735281015234,8.51011147,190.08,190.03,2.6341]
[1735281016439,2.6337,190.07,190.03,2.6341]
[1735281019333,2.6335,190.08,190.04,2.634]
[1735281019534,11.14361147,190.08,190.04,2.634]
[1735281019834,18.43323813,190.12,190.06,2.6337]
[1735281020035,18.43323813,190.12,190.07,3.04]
[1735281020235,11.14311147,190.12,190.07,3.04]
[1735281021234,8.51011147,190.12,190.07,3.04]
[1735281021540,11.14341147,190.1,190.07,3.04]
[1735281022138,2.6333,190.1,190.07,3.04]
[1735281023937,2.6331,190.11,190.07,3.04]
[1735281024341,8.51011147,190.12,190.07,5.6735]
[1735281024634,11.14301147,190.12,190.07,3.04]
[1735281024844,11.14301147,190.12,190.08,2.6334]
[1735281025342,8.51011147,190.12,190.07,3.04]
[1735281025540,8.51011147,190.1,190.07,3.04]
[1735281027545,2.6333,190.09,190.07,3.04]
[1735281028741,11.14331147,190.1,190.07,3.04]
[1735281029345,8.51011147,190.1,190.07,3.04]
[1735281030137,11.14331147,190.1,190.07,3.04]
[1735281031143,2.6332,190.1,190.07,3.04]
[1735281033041,30.68510664,190.16,190.09,8.51011147]
[1735281033249,2.6326,190.14,190.1,2.6332]
[1735281033839,2.6325,190.15,190.11,11.14311147]
[1735281034144,29.16050664,190.16,190.12,3.04]
[1735281034547,31.79300664,190.16,190.12,5.6728]
[1735281034746,8.51011147,190.18,190.12,3.04]
[1735281035246,7.29012666,190.19,190.12,3.04]
[1735281035446,2.6325,190.15,190.12,3.04]
[1735281037248,2.6324,190.16,190.12,11.55011147]
[1735281037446,1.5587,190.21,190.13,2.6327]
[1735281037748,8.51011147,190.19,190.13,2.6327]
[1735281038451,2.6322,190.17,190.13,2.6327]
[1735281040250,8.51011147,190.19,190.12,11.55011147]
[1735281040251,2.632,190.19,190.14,11.14271147]
[1735281040551,2.632,190.19,190.14,8.51011147]
[1735281040751,8.51011147,190.22,190.14,8.51011147]
[1735281040948,2.6319,190.2,190.15,2.6324]
[1735281041141,8.51011147,190.22,190.15,2.6324]
[1735281041344,8.51011147,190.22,190.14,8.51011147]
[1735281041544,11.14171147,190.22,190.18,2.6321]
[1735281041741,11.14171147,190.22,190.19,3.04]
[1735281043752,8.51011147,190.22,190.19,3.04]
[1735281043951,2.6317,190.21,190.19,3.04]
[1735281047954,1.34684682,190.27,190.19,3.04]
[1735281048257,2.6313,190.24,190.2,11.14191147]
[1735281049152,2.6313,190.24,190.2,8.51011147]
[1735281050053,8.51011147,190.25,190.19,3.04]
[1735281050251,8.51011147,190.23,190.19,3.04]
[1735281050753,2.6318,190.21,190.19,3.04]
[1735281051351,8.51011147,190.23,190.19,3.04]
[1735281051549,8.51011147,190.25,190.19,3.04]
[1735281051951,11.14131147,190.25,190.21,2.6316]
[1735281052456,2.6312,190.25,190.21,2.6316]
[1735281053657,2.6312,190.25,190.21,11.14171147]
[1735281061557,2.6311,190.26,190.21,11.14171147]
[1735281061863,8.51011147,190.28,190.22,2.6315]
[1735281062761,2.6309,190.27,190.22,2.6315]
[1735281065158,8.51011147,190.28,190.19,3.04]
[1735281065159,2.6307,190.28,190.19,3.04]